[Event "Titled Tuesday Blitz July 4 Late 2023"]
[White "Aldokhin, Ivan"]
[Black "Mindhunter08"]
[WhiteFideId "24115720"]
[WhiteElo "2668"]
[BlackElo "2416"]
[Result "1-0"]
[Round "7"]
[TimeControl "180+2"]
[Date "2023.07.04"]
[WhiteClock "0:00:02"]
[BlackClock "0:00:00"]
[Board "47"]

1. e4 {[%clk 0:02:59]}  e5 {[%clk 0:02:59]} 2. Nf3 {[%clk 0:02:59]}  Nc6 {[%clk 0:02:57]} 3. Bb5 {[%clk 0:02:59]}  a6 {[%clk 0:02:57]} 4. Ba4 {[%clk 0:02:59]}  Nf6 {[%clk 0:02:58]} 5. O-O {[%clk 0:02:59]}  Be7 {[%clk 0:02:58]} 6. Re1 {[%clk 0:02:59]}  b5 {[%clk 0:02:59]} 7. Bb3 {[%clk 0:02:59]}  d6 {[%clk 0:03:00]} 8. c3 {[%clk 0:03:00]}  O-O {[%clk 0:03:00]} 9. d4 {[%clk 0:03:00]}  Bg4 {[%clk 0:03:00]} 10. d5 {[%clk 0:03:01]}  Na5 {[%clk 0:02:59]} 11. Bc2 {[%clk 0:03:01]}  c6 {[%clk 0:03:00]} 12. h3 {[%clk 0:03:02]}  Bh5 {[%clk 0:02:53]} 13. dxc6 {[%clk 0:03:02]}  Qc7 {[%clk 0:02:53]} 14. Nbd2 {[%clk 0:03:02]}  Qxc6 {[%clk 0:02:53]} 15. Nf1 {[%clk 0:03:01]}  Nc4 {[%clk 0:02:48]} 16. Ng3 {[%clk 0:03:00]}  Bg6 {[%clk 0:02:46]} 17. Nh4 {[%clk 0:02:57]}  Rfd8 {[%clk 0:02:30]} 18. Nhf5 {[%clk 0:02:57]}  Bf8 {[%clk 0:02:30]} 19. Qf3 {[%clk 0:02:54]}  d5 {[%clk 0:02:19]} 20. h4 {[%clk 0:02:46]}  d4 {[%clk 0:01:55]} 21. h5 {[%clk 0:02:06]}  Bxf5 {[%clk 0:01:50]} 22. Nxf5 {[%clk 0:02:07]}  dxc3 {[%clk 0:01:30]} 23. bxc3 {[%clk 0:02:06]}  Rd7 {[%clk 0:01:31]} 24. g4 {[%clk 0:01:21]}  Rad8 {[%clk 0:01:19]} 25. Bg5 {[%clk 0:01:16]}  Nd2 {[%clk 0:01:11]} 26. Qg3 {[%clk 0:01:06]}  Ndxe4 {[%clk 0:01:00]} 27. Rxe4 {[%clk 0:00:57]}  Nxe4 {[%clk 0:00:56]} 28. Qf3 {[%clk 0:00:39]}  Qxc3 {[%clk 0:00:53]} 29. Qxe4 {[%clk 0:00:39]}  Qxa1+ {[%clk 0:00:49]} 30. Kg2 {[%clk 0:00:39]}  g6 {[%clk 0:00:39]} 31. Bxd8 {[%clk 0:00:32]}  Rxd8 {[%clk 0:00:34]} 32. Bb3 {[%clk 0:00:26]}  Qb2 {[%clk 0:00:18]} 33. hxg6 {[%clk 0:00:16]}  hxg6 {[%clk 0:00:18]} 34. Ne7+ {[%clk 0:00:09]}  Kg7 {[%clk 0:00:11]} 35. Qf3 {[%clk 0:00:01]}  f6 {[%clk 0:00:04]} 36. Nc6 {[%clk 0:00:01]}  Rd6 {[%clk 0:00:03]} 37. g5 {[%clk 0:00:01]}  f5 {[%clk 0:00:03]} 38. Qe3 {[%clk 0:00:01]}  Rxc6 {[%clk 0:00:02]} 39. Qa7+ {[%clk 0:00:02]}  Kh8 {[%clk 0:00:00]} 40. Qf7 {[%clk 0:00:02]} 1-0


[Site "https://www.chess.com"]

[Event "Titled Tuesday Blitz July 4 Late 2023"]
[White "Golubev, Mikhail"]
[Black "Goltsev, Dmitry"]
[WhiteFideId "14100983"]
[BlackFideId "24176710"]
[WhiteElo "2552"]
[BlackElo "2816"]
[Result "1-0"]
[Round "7"]
[TimeControl "180+2"]
[Date "2023.07.04"]
[WhiteClock "0:00:02"]
[BlackClock "0:00:20"]
[Board "51"]

1. e4 {[%clk 0:03:00]}  e6 {[%clk 0:02:59]} 2. d4 {[%clk 0:02:59]}  d5 {[%clk 0:03:00]} 3. Bd3 {[%clk 0:03:00]}  c5 {[%clk 0:03:01]} 4. exd5 {[%clk 0:02:57]}  exd5 {[%clk 0:03:02]} 5. Nf3 {[%clk 0:02:55]}  Nf6 {[%clk 0:02:59]} 6. O-O {[%clk 0:02:52]}  Be7 {[%clk 0:02:58]} 7. dxc5 {[%clk 0:02:51]}  Bxc5 {[%clk 0:02:59]} 8. Qe2+ {[%clk 0:02:46]}  Be6 {[%clk 0:02:59]} 9. Ng5 {[%clk 0:02:41]}  O-O {[%clk 0:02:55]} 10. Nxe6 {[%clk 0:02:37]}  fxe6 {[%clk 0:02:56]} 11. Qxe6+ {[%clk 0:02:37]}  Kh8 {[%clk 0:02:56]} 12. Bg5 {[%clk 0:02:29]}  Nc6 {[%clk 0:02:53]} 13. Nc3 {[%clk 0:02:20]}  Nd4 {[%clk 0:02:50]} 14. Qh3 {[%clk 0:02:17]}  h6 {[%clk 0:02:47]} 15. Rae1 {[%clk 0:01:47]}  Rc8 {[%clk 0:02:32]} 16. Re5 {[%clk 0:01:30]}  Qd7 {[%clk 0:02:12]} 17. Qxd7 {[%clk 0:01:19]}  Nxd7 {[%clk 0:02:13]} 18. Rxd5 {[%clk 0:01:19]}  Nb6 {[%clk 0:02:13]} 19. Rxc5 {[%clk 0:01:19]}  Rxc5 {[%clk 0:02:07]} 20. Be7 {[%clk 0:01:18]}  Rcc8 {[%clk 0:02:07]} 21. Bxf8 {[%clk 0:01:17]}  Rxf8 {[%clk 0:02:08]} 22. Re1 {[%clk 0:01:15]}  Nc6 {[%clk 0:02:07]} 23. a3 {[%clk 0:01:08]}  Nd7 {[%clk 0:02:06]} 24. f3 {[%clk 0:01:04]}  Nc5 {[%clk 0:02:04]} 25. Be4 {[%clk 0:00:59]}  Nd4 {[%clk 0:02:02]} 26. Rd1 {[%clk 0:00:56]}  Rd8 {[%clk 0:02:02]} 27. Kf2 {[%clk 0:00:53]}  b6 {[%clk 0:01:53]} 28. Ke3 {[%clk 0:00:47]}  Nce6 {[%clk 0:01:48]} 29. Ne2 {[%clk 0:00:40]}  Nb5 {[%clk 0:01:25]} 30. Rxd8+ {[%clk 0:00:39]}  Nxd8 {[%clk 0:01:26]} 31. c4 {[%clk 0:00:35]}  Nc7 {[%clk 0:01:25]} 32. b4 {[%clk 0:00:31]}  Kg8 {[%clk 0:01:26]} 33. Nf4 {[%clk 0:00:30]}  Kf7 {[%clk 0:01:26]} 34. Bd5+ {[%clk 0:00:27]}  Ke7 {[%clk 0:01:24]} 35. Ke4 {[%clk 0:00:24]}  g5 {[%clk 0:01:22]} 36. Ne2 {[%clk 0:00:20]}  Kd6 {[%clk 0:01:22]} 37. Nd4 {[%clk 0:00:18]}  h5 {[%clk 0:01:19]} 38. Nf5+ {[%clk 0:00:17]}  Kd7 {[%clk 0:01:19]} 39. h4 {[%clk 0:00:17]}  gxh4 {[%clk 0:01:18]} 40. Nxh4 {[%clk 0:00:17]}  b5 {[%clk 0:01:19]} 41. c5 {[%clk 0:00:15]}  a5 {[%clk 0:01:19]} 42. bxa5 {[%clk 0:00:13]}  Nc6 {[%clk 0:01:20]} 43. g4 {[%clk 0:00:09]}  hxg4 {[%clk 0:01:17]} 44. fxg4 {[%clk 0:00:10]}  Nxa5 {[%clk 0:01:17]} 45. g5 {[%clk 0:00:10]}  Nc6 {[%clk 0:01:06]} 46. g6 {[%clk 0:00:08]}  Ne7 {[%clk 0:01:06]} 47. Bf7 {[%clk 0:00:07]}  Na6 {[%clk 0:01:01]} 48. Nf5 {[%clk 0:00:07]}  Nxc5+ {[%clk 0:00:59]} 49. Kd4 {[%clk 0:00:05]}  Na4 {[%clk 0:00:17]} 50. Nxe7 {[%clk 0:00:04]}  Kxe7 {[%clk 0:00:18]} 51. Bd5 {[%clk 0:00:04]}  Kf6 {[%clk 0:00:17]} 52. Be4 {[%clk 0:00:04]}  Nb2 {[%clk 0:00:12]} 53. Kc5 {[%clk 0:00:03]}  Nc4 {[%clk 0:00:12]} 54. Kxb5 {[%clk 0:00:01]}  Nxa3+ {[%clk 0:00:12]} 55. Kb4 {[%clk 0:00:01]}  Nc2+ {[%clk 0:00:13]} 56. Bxc2 {[%clk 0:00:01]}  Kg7 {[%clk 0:00:14]} 57. Kc5 {[%clk 0:00:01]}  Kh8 {[%clk 0:00:15]} 58. Kd4 {[%clk 0:00:02]}  Kg8 {[%clk 0:00:16]} 59. Ke5 {[%clk 0:00:02]}  Kh8 {[%clk 0:00:17]} 60. Kf4 {[%clk 0:00:02]}  Kg7 {[%clk 0:00:17]} 61. Kg5 {[%clk 0:00:03]}  Kg8 {[%clk 0:00:18]} 62. Kh6 {[%clk 0:00:03]}  Kh8 {[%clk 0:00:19]} 63. g7+ {[%clk 0:00:02]}  Kg8 {[%clk 0:00:20]} 64. Bb3# {[%clk 0:00:02]} 1-0


[Site "https://www.chess.com"]

[Event "Titled Tuesday Blitz July 4 Late 2023"]
[White "Guerra Tulcan, Lenin"]
[Black "Luong Phuong Hanh"]
[WhiteFideId "3601382"]
[BlackFideId "12401013"]
[WhiteElo "2652"]
[BlackElo "2479"]
[Result "1-0"]
[Round "7"]
[TimeControl "180+2"]
[Date "2023.07.04"]
[WhiteClock "0:00:19"]
[BlackClock "0:00:00"]
[Board "56"]

1. e4 {[%clk 0:02:50]}  c5 {[%clk 0:02:56]} 2. Nf3 {[%clk 0:02:50]}  e6 {[%clk 0:02:55]} 3. b4 {[%clk 0:02:49]}  cxb4 {[%clk 0:02:52]} 4. a3 {[%clk 0:02:49]}  d5 {[%clk 0:02:52]} 5. exd5 {[%clk 0:02:47]}  Qxd5 {[%clk 0:02:52]} 6. axb4 {[%clk 0:02:44]}  Bxb4 {[%clk 0:02:50]} 7. Bd3 {[%clk 0:02:44]}  Nf6 {[%clk 0:02:49]} 8. Nc3 {[%clk 0:02:35]}  Qd8 {[%clk 0:02:33]} 9. Ra4 {[%clk 0:02:34]}  Be7 {[%clk 0:02:31]} 10. O-O {[%clk 0:02:32]}  O-O {[%clk 0:02:30]} 11. Bb2 {[%clk 0:02:32]}  Nc6 {[%clk 0:02:30]} 12. Rh4 {[%clk 0:02:32]}  h6 {[%clk 0:02:29]} 13. Qe2 {[%clk 0:02:25]}  Nb4 {[%clk 0:02:28]} 14. Rd4 {[%clk 0:02:02]}  Qa5 {[%clk 0:02:21]} 15. Ra1 {[%clk 0:01:37]}  Qh5 {[%clk 0:02:13]} 16. Rh4 {[%clk 0:01:35]}  Qc5 {[%clk 0:01:47]} 17. Rc4 {[%clk 0:01:35]}  Qb6 {[%clk 0:01:18]} 18. Na4 {[%clk 0:01:30]}  Qd8 {[%clk 0:01:09]} 19. Bxf6 {[%clk 0:01:22]}  Bxf6 {[%clk 0:01:08]} 20. Rxb4 {[%clk 0:01:11]}  Bxa1 {[%clk 0:01:07]} 21. c3 {[%clk 0:01:12]}  Qa5 {[%clk 0:00:46]} 22. Qe1 {[%clk 0:00:49]}  a6 {[%clk 0:00:25]} 23. Qxa1 {[%clk 0:00:25]}  b5 {[%clk 0:00:24]} 24. Be4 {[%clk 0:00:25]}  Ra7 {[%clk 0:00:07]} 25. Nd4 {[%clk 0:00:26]}  Bd7 {[%clk 0:00:06]} 26. Nb3 {[%clk 0:00:24]}  Qc7 {[%clk 0:00:04]} 27. Nac5 {[%clk 0:00:24]}  a5 {[%clk 0:00:04]} 28. Rd4 {[%clk 0:00:24]}  Bc6 {[%clk 0:00:02]} 29. Bxc6 {[%clk 0:00:21]}  Qxc6 {[%clk 0:00:00]} 30. Nd3 {[%clk 0:00:19]} 1-0


[Site "https://www.chess.com"]

[Event "Titled Tuesday Blitz July 4 Late 2023"]
[White "Di Berardino, Diego Rafael"]
[Black "Ai, Evan"]
[WhiteFideId "2105446"]
[BlackFideId "2094770"]
[WhiteElo "2620"]
[BlackElo "2442"]
[Result "1-0"]
[Round "7"]
[TimeControl "180+2"]
[Date "2023.07.04"]
[WhiteClock "0:00:13"]
[BlackClock "0:00:00"]
[Board "59"]

1. d4 {[%clk 0:03:00]}  Nf6 {[%clk 0:02:59]} 2. c4 {[%clk 0:02:59]}  e6 {[%clk 0:02:59]} 3. Nc3 {[%clk 0:02:59]}  Bb4 {[%clk 0:02:59]} 4. e3 {[%clk 0:02:59]}  O-O {[%clk 0:02:59]} 5. Bd3 {[%clk 0:02:59]}  d5 {[%clk 0:02:59]} 6. a3 {[%clk 0:02:58]}  Bxc3+ {[%clk 0:02:58]} 7. bxc3 {[%clk 0:02:59]}  dxc4 {[%clk 0:02:58]} 8. Bxc4 {[%clk 0:03:00]}  b6 {[%clk 0:02:57]} 9. Ne2 {[%clk 0:02:58]}  Bb7 {[%clk 0:02:58]} 10. O-O {[%clk 0:02:51]}  Nbd7 {[%clk 0:02:57]} 11. f3 {[%clk 0:02:50]}  c5 {[%clk 0:02:57]} 12. e4 {[%clk 0:02:49]}  Qc7 {[%clk 0:02:52]} 13. Bd3 {[%clk 0:02:46]}  Rfd8 {[%clk 0:02:48]} 14. Be3 {[%clk 0:02:37]}  Rac8 {[%clk 0:02:35]} 15. Bf4 {[%clk 0:02:03]}  e5 {[%clk 0:02:33]} 16. Bg3 {[%clk 0:01:57]}  cxd4 {[%clk 0:02:26]} 17. cxd4 {[%clk 0:01:56]}  Qd6 {[%clk 0:02:26]} 18. h3 {[%clk 0:01:38]}  Qe7 {[%clk 0:02:13]} 19. d5 {[%clk 0:01:22]}  Nc5 {[%clk 0:02:13]} 20. Bf2 {[%clk 0:01:19]}  Nfd7 {[%clk 0:02:12]} 21. Ng3 {[%clk 0:01:18]}  g6 {[%clk 0:02:11]} 22. Qd2 {[%clk 0:01:16]}  Nxd3 {[%clk 0:01:56]} 23. Qxd3 {[%clk 0:01:17]}  Nc5 {[%clk 0:01:57]} 24. Qe3 {[%clk 0:01:15]}  Ba6 {[%clk 0:01:55]} 25. Rfd1 {[%clk 0:01:15]}  Na4 {[%clk 0:01:53]} 26. Qh6 {[%clk 0:01:08]}  Rc2 {[%clk 0:01:38]} 27. Nf5 {[%clk 0:00:57]}  gxf5 {[%clk 0:01:35]} 28. Bh4 {[%clk 0:00:57]}  Rd6 {[%clk 0:01:27]} 29. Bxe7 {[%clk 0:00:49]}  Rxh6 {[%clk 0:01:27]} 30. d6 {[%clk 0:00:50]}  Nc5 {[%clk 0:01:15]} 31. d7 {[%clk 0:00:49]}  Nxd7 {[%clk 0:01:15]} 32. Rxd7 {[%clk 0:00:50]}  Rg6 {[%clk 0:01:00]} 33. g4 {[%clk 0:00:30]}  fxg4 {[%clk 0:00:55]} 34. hxg4 {[%clk 0:00:31]}  h5 {[%clk 0:00:55]} 35. g5 {[%clk 0:00:31]}  Be2 {[%clk 0:00:47]} 36. Bf6 {[%clk 0:00:27]}  Rc8 {[%clk 0:00:42]} 37. Kf2 {[%clk 0:00:26]}  Bb5 {[%clk 0:00:37]} 38. Rxa7 {[%clk 0:00:25]}  Rc2+ {[%clk 0:00:29]} 39. Kg3 {[%clk 0:00:21]}  Bc6 {[%clk 0:00:05]} 40. Rh1 {[%clk 0:00:20]}  Rc3 {[%clk 0:00:02]} 41. Rxh5 {[%clk 0:00:19]}  Rxf6 {[%clk 0:00:02]} 42. gxf6 {[%clk 0:00:17]}  b5 {[%clk 0:00:03]} 43. Rc7 {[%clk 0:00:13]}  Rc4 {[%clk 0:00:00]} 44. Rc8+ {[%clk 0:00:13]} 1-0


[Site "https://www.chess.com"]

[Event "Titled Tuesday Blitz July 4 Late 2023"]
[White "Taranenko, Evgueniy"]
[Black "Jaskolka, Tomasz"]
[WhiteFideId "14122138"]
[BlackFideId "1170791"]
[WhiteElo "2388"]
[BlackElo "2579"]
[Result "1-0"]
[Round "7"]
[TimeControl "180+2"]
[Date "2023.07.04"]
[WhiteClock "0:00:09"]
[BlackClock "0:00:00"]
[Board "62"]

1. e4 {[%clk 0:03:00]}  d5 {[%clk 0:02:59]} 2. exd5 {[%clk 0:03:00]}  Nf6 {[%clk 0:03:00]} 3. Nc3 {[%clk 0:03:00]}  Bg4 {[%clk 0:02:56]} 4. Be2 {[%clk 0:02:58]}  Bxe2 {[%clk 0:02:56]} 5. Ngxe2 {[%clk 0:02:58]}  Nxd5 {[%clk 0:02:57]} 6. O-O {[%clk 0:02:59]}  c6 {[%clk 0:02:57]} 7. d4 {[%clk 0:02:58]}  e6 {[%clk 0:02:57]} 8. Ne4 {[%clk 0:02:58]}  Be7 {[%clk 0:02:54]} 9. c3 {[%clk 0:02:45]}  Nd7 {[%clk 0:02:54]} 10. Qb3 {[%clk 0:02:43]}  Qb6 {[%clk 0:02:46]} 11. Nf4 {[%clk 0:02:35]}  O-O {[%clk 0:02:43]} 12. Re1 {[%clk 0:02:23]}  N7f6 {[%clk 0:02:33]} 13. Ng3 {[%clk 0:02:07]}  Bd6 {[%clk 0:02:27]} 14. Nd3 {[%clk 0:02:01]}  Qc7 {[%clk 0:02:25]} 15. c4 {[%clk 0:01:29]}  Ne7 {[%clk 0:02:06]} 16. Ne5 {[%clk 0:01:18]}  b5 {[%clk 0:01:47]} 17. c5 {[%clk 0:01:07]}  Bxe5 {[%clk 0:01:47]} 18. dxe5 {[%clk 0:01:07]}  Nd7 {[%clk 0:01:36]} 19. Ne4 {[%clk 0:00:41]}  Qxe5 {[%clk 0:01:24]} 20. Bg5 {[%clk 0:00:37]}  Nxc5 {[%clk 0:00:43]} 21. Qc2 {[%clk 0:00:14]}  Nxe4 {[%clk 0:00:23]} 22. Bxe7 {[%clk 0:00:14]}  Rfe8 {[%clk 0:00:23]} 23. Rxe4 {[%clk 0:00:14]}  Qd5 {[%clk 0:00:21]} 24. Bc5 {[%clk 0:00:15]}  Rad8 {[%clk 0:00:19]} 25. b4 {[%clk 0:00:14]}  Rd7 {[%clk 0:00:16]} 26. Ree1 {[%clk 0:00:14]}  Red8 {[%clk 0:00:16]} 27. h3 {[%clk 0:00:15]}  Qg5 {[%clk 0:00:09]} 28. Be3 {[%clk 0:00:11]}  Qh5 {[%clk 0:00:01]} 29. Qxc6 {[%clk 0:00:11]}  h6 {[%clk 0:00:02]} 30. Qc5 {[%clk 0:00:10]}  Rd5 {[%clk 0:00:02]} 31. Qxa7 {[%clk 0:00:10]}  Qg6 {[%clk 0:00:02]} 32. Qc7 {[%clk 0:00:10]}  Qd3 {[%clk 0:00:01]} 33. Qg3 {[%clk 0:00:10]}  Qc2 {[%clk 0:00:02]} 34. Rac1 {[%clk 0:00:10]}  Qxa2 {[%clk 0:00:02]} 35. Bxh6 {[%clk 0:00:10]}  g6 {[%clk 0:00:02]} 36. Be3 {[%clk 0:00:10]}  Rf5 {[%clk 0:00:02]} 37. Rc5 {[%clk 0:00:10]}  Rf6 {[%clk 0:00:00]} 38. Bg5 {[%clk 0:00:09]} 1-0


[Site "https://www.chess.com"]

[Event "Titled Tuesday Blitz July 4 Late 2023"]
[White "Martinez Reyes, Pedro Ramon"]
[Black "Fisher_TheGalactic"]
[WhiteFideId "3901807"]
[WhiteElo "2489"]
[BlackElo "2654"]
[Result "0-1"]
[Round "7"]
[TimeControl "180+2"]
[Date "2023.07.04"]
[WhiteClock "0:01:47"]
[BlackClock "0:00:51"]
[Board "66"]

1. e4 {[%clk 0:02:51]}  b6 {[%clk 0:01:43]} 2. d4 {[%clk 0:02:36]}  Bb7 {[%clk 0:01:43]} 3. Bd3 {[%clk 0:02:37]}  Nf6 {[%clk 0:01:42]} 4. Qe2 {[%clk 0:02:34]}  e6 {[%clk 0:01:42]} 5. Nf3 {[%clk 0:02:32]}  d5 {[%clk 0:01:40]} 6. exd5 {[%clk 0:02:33]}  Nxd5 {[%clk 0:01:40]} 7. O-O {[%clk 0:02:31]}  Be7 {[%clk 0:01:40]} 8. c4 {[%clk 0:02:28]}  Nf6 {[%clk 0:01:40]} 9. Nc3 {[%clk 0:02:27]}  O-O {[%clk 0:01:39]} 10. Bf4 {[%clk 0:02:25]}  Nbd7 {[%clk 0:01:39]} 11. Rad1 {[%clk 0:02:24]}  a6 {[%clk 0:01:38]} 12. Ne5 {[%clk 0:02:23]}  Qe8 {[%clk 0:01:20]} 13. Bb1 {[%clk 0:02:21]}  Rd8 {[%clk 0:01:20]} 14. Qc2 {[%clk 0:02:19]}  c5 {[%clk 0:01:16]} 15. Nxd7 {[%clk 0:02:13]}  Rxd7 {[%clk 0:01:15]} 16. Bg5 {[%clk 0:02:02]}  g6 {[%clk 0:01:00]} 17. dxc5 {[%clk 0:01:58]}  Rxd1 {[%clk 0:00:52]} 18. Rxd1 {[%clk 0:01:59]}  Qc6 {[%clk 0:00:53]} 19. f3 {[%clk 0:01:47]}  Qxc5+ {[%clk 0:00:51]} 0-1


[Site "https://www.chess.com"]

[Event "Titled Tuesday Blitz July 4 Late 2023"]
[White "Kovalevsky, Stanislav"]
[Black "Andrej2004"]
[WhiteFideId "13508598"]
[WhiteElo "2489"]
[BlackElo "2653"]
[Result "0-1"]
[Round "7"]
[TimeControl "180+2"]
[Date "2023.07.04"]
[WhiteClock "0:01:38"]
[BlackClock "0:02:05"]
[Board "67"]

1. c4 {[%clk 0:03:00]}  b6 {[%clk 0:03:00]} 2. Nc3 {[%clk 0:03:00]}  Bb7 {[%clk 0:03:01]} 3. Nf3 {[%clk 0:03:01]}  Nf6 {[%clk 0:03:01]} 4. g3 {[%clk 0:03:01]}  g6 {[%clk 0:03:01]} 5. Bg2 {[%clk 0:03:02]}  Bg7 {[%clk 0:03:02]} 6. O-O {[%clk 0:03:02]}  O-O {[%clk 0:03:03]} 7. Re1 {[%clk 0:03:02]}  Ne4 {[%clk 0:02:58]} 8. Nxe4 {[%clk 0:03:00]}  Bxe4 {[%clk 0:02:59]} 9. d3 {[%clk 0:02:56]}  Bb7 {[%clk 0:02:59]} 10. e4 {[%clk 0:02:56]}  c5 {[%clk 0:02:59]} 11. d4 {[%clk 0:02:53]}  cxd4 {[%clk 0:02:58]} 12. Nxd4 {[%clk 0:02:54]}  Nc6 {[%clk 0:02:59]} 13. Be3 {[%clk 0:02:54]}  Rc8 {[%clk 0:02:57]} 14. b3 {[%clk 0:02:54]}  d6 {[%clk 0:02:56]} 15. Rc1 {[%clk 0:02:53]}  Nxd4 {[%clk 0:02:53]} 16. Bxd4 {[%clk 0:02:53]}  Bxd4 {[%clk 0:02:53]} 17. Qxd4 {[%clk 0:02:54]}  Qc7 {[%clk 0:02:54]} 18. h4 {[%clk 0:02:44]}  Qc5 {[%clk 0:02:52]} 19. Red1 {[%clk 0:02:44]}  Qxd4 {[%clk 0:02:51]} 20. Rxd4 {[%clk 0:02:44]}  a5 {[%clk 0:02:51]} 21. Re1 {[%clk 0:02:34]}  Rc5 {[%clk 0:02:50]} 22. e5 {[%clk 0:02:30]}  Bxg2 {[%clk 0:02:45]} 23. Kxg2 {[%clk 0:02:30]}  dxe5 {[%clk 0:02:45]} 24. Rd7 {[%clk 0:02:29]}  e6 {[%clk 0:02:45]} 25. Rb7 {[%clk 0:02:29]}  Rd8 {[%clk 0:02:43]} 26. Rxb6 {[%clk 0:02:27]}  Rd2 {[%clk 0:02:42]} 27. Re3 {[%clk 0:02:21]}  Rxa2 {[%clk 0:02:41]} 28. Rf3 {[%clk 0:02:10]}  e4 {[%clk 0:02:27]} 29. Re3 {[%clk 0:02:07]}  Rf5 {[%clk 0:02:27]} 30. Rxe4 {[%clk 0:02:02]}  Rfxf2+ {[%clk 0:02:27]} 31. Kg1 {[%clk 0:02:00]}  Rfb2 {[%clk 0:02:26]} 32. Rf4 {[%clk 0:01:58]}  a4 {[%clk 0:02:11]} 33. Rb8+ {[%clk 0:01:57]}  Kg7 {[%clk 0:02:10]} 34. Rb7 {[%clk 0:01:58]}  Ra1+ {[%clk 0:02:09]} 35. Rf1 {[%clk 0:01:58]}  Rxf1+ {[%clk 0:02:10]} 36. Kxf1 {[%clk 0:01:59]}  a3 {[%clk 0:02:09]} 37. Ra7 {[%clk 0:01:49]}  a2 {[%clk 0:02:08]} 38. b4 {[%clk 0:01:41]}  Rb1+ {[%clk 0:02:06]} 39. Ke2 {[%clk 0:01:42]}  a1=Q {[%clk 0:02:07]} 40. Rxa1 {[%clk 0:01:42]}  Rxa1 {[%clk 0:02:08]} 41. b5 {[%clk 0:01:43]}  Kf6 {[%clk 0:02:07]} 42. c5 {[%clk 0:01:38]}  Ra5 {[%clk 0:02:05]} 0-1


[Site "https://www.chess.com"]

[Event "Titled Tuesday Blitz July 4 Late 2023"]
[White "Janaszak, Dawid"]
[Black "Avila Rodriguez, Joshua Ad"]
[WhiteFideId "1119206"]
[BlackFideId "5126444"]
[WhiteElo "2587"]
[BlackElo "2469"]
[Result "1-0"]
[Round "7"]
[TimeControl "180+2"]
[Date "2023.07.04"]
[WhiteClock "0:01:27"]
[BlackClock "0:00:00"]
[Board "70"]

1. e4 {[%clk 0:03:00]}  c5 {[%clk 0:02:59]} 2. Nc3 {[%clk 0:03:00]}  d6 {[%clk 0:02:59]} 3. f4 {[%clk 0:03:00]}  g6 {[%clk 0:03:00]} 4. Nf3 {[%clk 0:03:00]}  Bg7 {[%clk 0:03:00]} 5. Bc4 {[%clk 0:03:00]}  Nc6 {[%clk 0:03:00]} 6. O-O {[%clk 0:03:00]}  e6 {[%clk 0:03:00]} 7. d4 {[%clk 0:03:00]}  cxd4 {[%clk 0:02:58]} 8. Nb5 {[%clk 0:03:00]}  a6 {[%clk 0:02:47]} 9. Nbxd4 {[%clk 0:02:59]}  Nxd4 {[%clk 0:02:47]} 10. Nxd4 {[%clk 0:03:00]}  Nf6 {[%clk 0:02:23]} 11. e5 {[%clk 0:02:54]}  Ne4 {[%clk 0:01:55]} 12. Qf3 {[%clk 0:02:38]}  d5 {[%clk 0:01:20]} 13. Bd3 {[%clk 0:02:37]}  Nc5 {[%clk 0:01:19]} 14. Be3 {[%clk 0:02:30]}  Nxd3 {[%clk 0:01:07]} 15. cxd3 {[%clk 0:02:30]}  Bd7 {[%clk 0:01:05]} 16. f5 {[%clk 0:02:07]}  gxf5 {[%clk 0:00:53]} 17. g4 {[%clk 0:02:06]}  Bxe5 {[%clk 0:00:47]} 18. gxf5 {[%clk 0:02:06]}  Rg8+ {[%clk 0:00:47]} 19. Kh1 {[%clk 0:02:06]}  Qh4 {[%clk 0:00:47]} 20. Qf2 {[%clk 0:01:53]}  Qxf2 {[%clk 0:00:40]} 21. Rxf2 {[%clk 0:01:54]}  Rc8 {[%clk 0:00:20]} 22. Raf1 {[%clk 0:01:52]}  Bxd4 {[%clk 0:00:04]} 23. Bxd4 {[%clk 0:01:53]}  exf5 {[%clk 0:00:05]} 24. Re1+ {[%clk 0:01:53]}  Be6 {[%clk 0:00:05]} 25. Rxf5 {[%clk 0:01:51]}  Rc2 {[%clk 0:00:06]} 26. Rxd5 {[%clk 0:01:43]}  Rgg2 {[%clk 0:00:04]} 27. Rh5 {[%clk 0:01:43]}  Kd7 {[%clk 0:00:02]} 28. Rc1 {[%clk 0:01:35]}  Rxc1+ {[%clk 0:00:01]} 29. Kxg2 {[%clk 0:01:36]}  Rc2+ {[%clk 0:00:01]} 30. Kg3 {[%clk 0:01:37]}  b5 {[%clk 0:00:01]} 31. Rxh7 {[%clk 0:01:36]}  Rd2 {[%clk 0:00:02]} 32. Kf4 {[%clk 0:01:29]}  Rxd3 {[%clk 0:00:03]} 33. Ke4 {[%clk 0:01:29]}  Rd2 {[%clk 0:00:03]} 34. Bc3 {[%clk 0:01:27]}  Rf2 {[%clk 0:00:02]} 35. Ke3 {[%clk 0:01:27]}  Rg2 {[%clk 0:00:02]} 36. h4 {[%clk 0:01:28]}  Rh2 {[%clk 0:00:02]} 37. h5 {[%clk 0:01:28]}  Rh3+ {[%clk 0:00:02]} 38. Kf4 {[%clk 0:01:27]}  Ke7 {[%clk 0:00:02]} 39. h6 {[%clk 0:01:27]}  Rh5 {[%clk 0:00:00]} 40. Rh8 {[%clk 0:01:27]} 1-0


[Site "https://www.chess.com"]

[Event "Titled Tuesday Blitz July 4 Late 2023"]
[White "Uzcategui Rodriguez, Alejandro"]
[Black "Ozates, Tuna"]
[WhiteFideId "3903400"]
[BlackFideId "6354521"]
[WhiteElo "2452"]
[BlackElo "2557"]
[Result "0-1"]
[Round "7"]
[TimeControl "180+2"]
[Date "2023.07.04"]
[WhiteClock "0:00:01"]
[BlackClock "0:00:54"]
[Board "73"]

1. d4 {[%clk 0:01:57]}  f5 {[%clk 0:02:57]} 2. Nf3 {[%clk 0:01:55]}  Nf6 {[%clk 0:02:57]} 3. g3 {[%clk 0:01:56]}  e6 {[%clk 0:02:57]} 4. Bg2 {[%clk 0:01:57]}  Be7 {[%clk 0:02:58]} 5. c4 {[%clk 0:01:57]}  O-O {[%clk 0:02:59]} 6. O-O {[%clk 0:01:58]}  d6 {[%clk 0:02:59]} 7. Nc3 {[%clk 0:01:55]}  Ne4 {[%clk 0:02:57]} 8. Qc2 {[%clk 0:01:53]}  Nxc3 {[%clk 0:02:56]} 9. Qxc3 {[%clk 0:01:54]}  Bf6 {[%clk 0:02:57]} 10. Re1 {[%clk 0:01:54]}  a5 {[%clk 0:02:57]} 11. e4 {[%clk 0:01:53]}  fxe4 {[%clk 0:02:57]} 12. Rxe4 {[%clk 0:01:53]}  Nc6 {[%clk 0:02:58]} 13. Bf4 {[%clk 0:01:48]}  Bd7 {[%clk 0:02:38]} 14. Qd2 {[%clk 0:01:47]}  h6 {[%clk 0:02:33]} 15. h4 {[%clk 0:01:41]}  d5 {[%clk 0:02:16]} 16. cxd5 {[%clk 0:01:38]}  exd5 {[%clk 0:02:17]} 17. Ree1 {[%clk 0:01:37]}  Bg4 {[%clk 0:02:13]} 18. Ne5 {[%clk 0:01:36]}  Bxe5 {[%clk 0:02:11]} 19. dxe5 {[%clk 0:01:29]}  Ne7 {[%clk 0:02:00]} 20. Rac1 {[%clk 0:01:04]}  Be6 {[%clk 0:01:55]} 21. Bxh6 {[%clk 0:00:57]}  gxh6 {[%clk 0:01:55]} 22. Qxh6 {[%clk 0:00:58]}  Ra6 {[%clk 0:01:47]} 23. Qg5+ {[%clk 0:00:52]}  Kf7 {[%clk 0:01:36]} 24. Qh5+ {[%clk 0:00:45]}  Ng6 {[%clk 0:01:35]} 25. Rc3 {[%clk 0:00:33]}  Rh8 {[%clk 0:01:31]} 26. Qf3+ {[%clk 0:00:21]}  Kg7 {[%clk 0:01:27]} 27. h5 {[%clk 0:00:19]}  Rf8 {[%clk 0:01:23]} 28. Qe3 {[%clk 0:00:13]}  d4 {[%clk 0:01:12]} 29. Rxc7+ {[%clk 0:00:13]}  Qxc7 {[%clk 0:01:10]} 30. Qg5 {[%clk 0:00:14]}  Qf7 {[%clk 0:00:57]} 31. f4 {[%clk 0:00:01]}  Qf5 {[%clk 0:00:54]} 0-1


[Site "https://www.chess.com"]